bitfinex/quotes_ETHUSD_20241106
["timestamp","ask_amount","ask_price","bid_price","bid_amount"]
[1730906084603,0.55549306,2646.0,2645.5,7.55994]
[1730906084604,4.33478306,2646.0,2645.5,7.55994]
[1730906084763,4.33478306,2646.0,2645.5,3.77997]
[1730906085190,3.77946,2645.9,2645.3,3.7802]
[1730906085503,3.77946,2645.9,2645.3,7.5604]
[1730906085675,4.64093283,2645.9,2645.3,3.78019]
[1730906085876,0.86147283,2645.9,2645.1,0.07559522]
[1730906086076,0.86147283,2645.9,2645.1,3.78049]
[1730906086077,0.8041,2645.7,2645.1,3.78049]
[1730906086385,0.8041,2645.7,2645.2,3.78035]
[1730906086778,0.8041,2645.7,2645.3,3.78018]
[1730906086973,0.7766,2646.0,2645.4,0.0756023]
[1730906087194,3.61,2646.4,2645.9,4.77187001]
[1730906087195,0.7766,2646.4,2645.9,4.77187001]
[1730906087403,0.01,2647.3,2646.0,3.77919]
[1730906087404,0.7766,2646.6,2646.0,3.77919]
[1730906087605,1.232098,2646.6,2646.1,3.77905]
[1730906087908,0.7766,2646.6,2646.1,3.77905]
[1730906088522,0.7766,2646.6,2646.3,3.77884]
[1730906088712,0.7766,2646.6,2646.1,3.779]
[1730906088913,0.7766,2646.6,2646.2,3.77891]
[1730906089422,0.7766,2646.6,2645.5,5.59677001]
[1730906089619,0.7766,2646.6,2646.3,7.55754]
[1730906089831,0.7766,2646.6,2646.3,3.77877]
[1730906090014,0.7766,2646.6,2646.0,3.77925]
[1730906090221,3.77724,2647.5,2646.8,3.77805]
[1730906090522,3.77755,2647.3,2646.8,3.77805]
[1730906090942,0.0782881,2647.6,2647.1,3.77768]
[1730906091105,0.0782881,2647.6,2647.2,3.77745]
[1730906091493,0.0782881,2647.6,2647.5,3.77714]
[1730906092130,0.0782881,2647.6,2647.5,4.532581]
[1730906092332,0.0782881,2647.6,2647.5,4.6081133]
[1730906092823,0.0782881,2647.6,2647.5,4.532581]
[1730906092988,0.0782881,2647.6,2647.5,4.60811297]
[1730906093917,0.0782881,2647.6,2647.5,5.41411297]
[1730906094325,0.00364697,2648.4,2648.3,3.776]
[1730906094628,3.96237355,2649.7,2648.4,0.8243]
[1730906094629,3.77401,2649.7,2648.4,0.8243]
[1730906094851,2.6143,2649.9,2649.4,3.77441]
[1730906095195,2.6143,2649.9,2649.4,3.77434]
[1730906095818,2.6143,2649.9,2649.2,3.77468]
[1730906096039,2.6143,2649.9,2649.5,3.77419]
[1730906096224,2.6143,2649.9,2649.5,3.77423]
[1730906096448,2.6143,2649.9,2649.8,3.77386]
[1730906096942,2.6143,2649.9,2649.6,3.77401]
[1730906097440,2.6143,2649.9,2649.4,4.52921]
[1730906097738,2.6143,2649.9,2649.1,4.77187001]
[1730906097921,2.6143,2649.9,2649.2,3.77463]
[1730906098095,3.77397,2649.8,2649.0,4.5779]
[1730906098296,2.6143,2649.9,2649.0,0.803]
[1730906098493,0.8319,2649.8,2648.8,3.77518]
[1730906098735,0.8319,2649.8,2648.8,3.77526]
[1730906098933,3.77402,2649.7,2648.9,3.77504]
[1730906099240,3.77433,2649.5,2648.8,3.77526]
[1730906099547,3.77433,2649.5,2648.7,3.77541]
[1730906099839,4.151763,2649.5,2648.7,3.77541]
[1730906100132,3.77447,2649.4,2648.7,3.77541]
[1730906100348,3.77465,2649.3,2648.5,3.7757]
[1730906100648,3.77465,2649.3,2648.6,3.77555]
[1730906100649,0.8319,2649.2,2648.6,3.77555]
[1730906100814,0.8319,2649.2,2648.3,4.15346]
[1730906100815,3.77496,2649.1,2648.3,4.15346]
[1730906101139,0.8319,2649.2,2648.6,3.77549]
[1730906101341,0.8319,2649.2,2648.5,3.77561]
[1730906101634,3.77495,2649.1,2648.4,3.77576]
[1730906101848,3.77495,2649.1,2648.3,3.77593]
[1730906102000,3.77528,2648.9,2648.2,3.77613]
[1730906102199,0.8319,2649.2,2648.5,3.7757]
[1730906102426,3.77493,2649.1,2648.6,0.075503]
[1730906102668,0.01,2649.6,2647.9,0.803]
[1730906102669,0.8087,2648.4,2647.9,3.77648]
[1730906102845,0.8087,2648.4,2647.1,3.77771]
[1730906103042,0.8087,2648.4,2647.4,3.77716]
[1730906103241,3.77637,2648.1,2647.2,3.77751]
[1730906103441,3.77637,2648.1,2647.4,3.77718]
[1730906103648,0.377637,2648.1,2647.1,4.64764]
[1730906103874,3.77658,2647.9,2647.2,3.77757]
[1730906104027,3.77674,2647.8,2647.2,3.77755]
[1730906104223,3.7766,2647.9,2647.3,3.85289554]
[1730906104420,3.77691,2647.7,2647.1,3.77763]
[1730906104771,3.77691,2647.7,2646.8,0.8103]
[1730906104932,3.77663,2647.9,2646.9,0.0755486]
[1730906105137,3.77629,2648.1,2646.9,0.56577186]
[1730906105357,3.77629,2648.1,2646.6,3.77836]
[1730906105358,3.77744,2647.3,2646.6,3.77836]
[1730906105523,3.77744,2647.3,2646.7,3.85381645]
[1730906105719,3.77744,2647.3,2646.7,3.77826]
[1730906105919,4.60248,2647.5,2646.4,3.77866]
[1730906105920,3.77773,2647.1,2646.4,3.77866]
[1730906106133,3.778,2647.0,2646.2,4.64896]
[1730906106447,3.77763,2647.2,2646.5,3.77844]
[1730906106649,3.77763,2647.2,2646.5,3.85400258]
[1730906106851,3.77763,2647.2,2646.5,8.8139286]
[1730906107178,3.77763,2647.2,2646.6,3.77831]
[1730906107478,3.77763,2647.2,2646.5,3.77844]
[1730906107479,3.77758,2647.2,2646.5,3.77844]
[1730906107764,3.77773,2647.1,2646.5,3.77844]
[1730906107963,3.77787,2647.0,2646.5,1.24046907]
[1730906108169,3.77787,2647.0,2646.3,8.55069001]
[1730906108170,3.77787,2647.0,2646.3,3.77882]
[1730906108371,3.77801,2646.9,2646.3,3.77882]
[1730906108955,3.7778,2647.1,2646.4,3.7787]
[1730906109325,3.77736,2647.4,2646.5,3.85406402]
[1730906109529,3.77736,2647.4,2646.8,3.77805]
[1730906109864,3.77729,2647.4,2646.5,3.77857]
[1730906110061,3.77771,2647.2,2646.5,3.77857]
[1730906110249,4.60256,2647.5,2646.3,4.77187001]
[1730906110574,3.77795,2647.0,2646.4,3.7787]
[1730906110773,3.77762,2647.2,2646.6,3.77838]
[1730906110982,3.77745,2647.3,2646.7,3.77825]
[1730906111130,3.77681,2647.8,2646.7,3.77825]
[1730906111131,0.8118,2648.2,2646.8,0.89505997]
[1730906111489,0.8118,2648.2,2647.4,3.77724]
[1730906111490,3.77654,2648.0,2647.4,3.77724]
[1730906111770,4.588,2648.2,2647.5,3.77713]
[1730906111771,0.8118,2648.2,2647.5,3.77713]
[1730906111928,0.8118,2648.2,2647.3,3.7773]
[1730906111929,3.77657,2647.9,2647.3,3.7773]
[1730906112263,3.77657,2647.9,2647.3,5.009996]
[1730906112264,3.7766,2647.9,2647.3,5.009996]
[1730906112475,3.7766,2647.9,2647.3,1.232676]
[1730906112625,3.7766,2647.9,2646.8,0.8195]
[1730906112626,3.7766,2647.9,2647.2,3.85297229]
[1730906112829,3.77682,2647.8,2647.2,3.77743]
[1730906113057,3.77699,2647.7,2647.0,3.85337349]
[1730906113276,3.77701,2647.6,2647.0,3.77783]
[1730906113429,4.59237,2647.5,2646.9,3.85354111]
[1730906113629,3.77701,2647.6,2647.0,3.77784]
[1730906114165,4.58479,2647.8,2647.0,3.77785]
[1730906114383,0.808,2647.8,2647.3,3.77734]
[1730906114580,0.808,2647.8,2647.2,3.77749]
[1730906114731,4.53191,2648.2,2647.5,3.77714]
[1730906115358,3.77592,2648.4,2647.8,3.77662]
[1730906115554,3.77573,2648.5,2647.8,3.77662]
[1730906115852,3.77631,2648.1,2647.6,3.77699]
[1730906116267,3.77601,2648.3,2647.7,3.77683]
[1730906116470,3.77579,2648.5,2647.8,3.7767]
[1730906116781,3.77625,2648.2,2647.6,3.77699]
[1730906116980,3.77625,2648.2,2647.7,3.77677]
[1730906117641,3.77625,2648.2,2647.4,3.77721]
[1730906117849,3.77655,2648.0,2647.4,7.55442]
[1730906118157,3.77655,2648.0,2646.5,3.78849]
[1730906118158,3.77692,2647.7,2647.2,3.77746]
[1730906118359,3.77692,2647.7,2647.0,3.77782]
[1730906118589,3.77692,2647.7,2647.2,3.77756]
[1730906118744,4.52946,2647.9,2647.2,3.77756]
[1730906118944,5.360043,2647.9,2647.2,3.77756]
[1730906119142,3.77637,2648.1,2647.5,3.77713]
[1730906119372,1.205325,2648.2,2647.7,3.77676]
[1730906119580,3.77581,2648.5,2648.1,3.77618]
[1730906119581,0.799,2648.5,2648.1,3.77618]
[1730906119783,4.57485,2648.5,2647.9,3.77648]
[1730906119996,0.799,2648.5,2647.7,3.77685]
[1730906120290,0.799,2648.5,2647.6,3.777]
[1730906120478,3.7759,2648.4,2647.7,3.77682]
[1730906121193,3.77615,2648.2,2647.7,7.55355]
[1730906121493,0.799,2648.5,2648.0,3.77642]
[1730906121706,3.77508,2649.0,2648.4,3.77579]
[1730906121846,0.7543,2648.7,2648.0,0.75531]
[1730906122046,0.7543,2648.7,2648.3,3.77592]
[1730906122474,0.7543,2648.7,2648.5,3.77561]
[1730906122691,0.625,2648.8,2648.4,4.56256]
[1730906122989,0.625,2648.8,2648.7,3.77543]
[1730906123395,3.77589,2648.4,2647.5,9.34359001]
[1730906123562,0.7601,2648.7,2648.4,3.77584]
[1730906123894,0.7601,2648.7,2647.7,3.77686]
[1730906123895,0.625,2648.8,2648.3,0.7829]
[1730906124097,0.625,2648.8,2647.9,4.77187001]
[1730906124249,4.40041,2648.8,2648.2,3.77609]
[1730906124445,4.40041,2648.8,2648.2,3.77606]
[1730906124675,5.217953,2648.8,2648.3,3.77599]
[1730906124881,0.625,2648.8,2648.4,3.77585]
[1730906125196,0.625,2648.8,2648.5,3.77572]
[1730906125801,0.625,2648.8,2648.7,3.77543]
[1730906126097,0.625,2648.8,2648.6,3.77556]
[1730906126254,0.625,2648.8,2647.8,0.01]
[1730906126255,0.7935,2648.7,2647.5,0.8155]
[1730906126455,0.7935,2648.7,2647.6,3.77691]
[1730906126456,3.77611,2648.3,2647.6,3.77691]
[1730906126752,0.755196,2648.3,2647.2,0.7582]
[1730906126953,3.77655,2648.0,2647.3,7.55474]
[1730906127153,3.77667,2647.9,2647.3,3.77731]
[1730906127369,3.77667,2647.9,2647.3,3.77742]
[1730906127370,3.7768,2647.8,2647.3,3.77742]
[1730906127572,3.77724,2647.5,2646.9,4.53616]
[1730906127890,0.7833,2647.5,2646.8,0.07555469]
[1730906128201,3.77754,2647.3,2646.7,3.77818]
[1730906128531,0.7833,2647.5,2646.6,3.77837]
[1730906128666,3.77781,2647.1,2646.4,3.77861]
[1730906128870,3.7776,2647.2,2646.5,3.77846]
[1730906129208,3.77772,2647.1,2646.5,3.77846]
[1730906129367,3.77772,2647.1,2646.4,7.55723]
[1730906129567,3.77772,2647.1,2646.5,3.77855]
[1730906130081,3.77772,2647.1,2646.0,3.77924]
[1730906130082,3.77829,2646.7,2646.1,3.7791]
[1730906130270,0.7777,2646.8,2646.0,3.85479751]
[1730906130610,3.77829,2646.7,2646.0,3.85479751]
[1730906130814,4.55597,2646.8,2646.0,3.85479751]
[1730906130968,3.77858,2646.5,2646.0,3.77922]
[1730906131176,3.77858,2646.5,2645.9,0.0566762]
[1730906131368,3.77828,2646.7,2646.0,3.77926]
[1730906131811,3.77859,2646.5,2645.9,0.0566762]
[1730906131974,3.77859,2646.5,2645.9,3.8360162]
[1730906132171,0.7777,2646.8,2646.3,3.77884]
[1730906132384,4.55593,2646.8,2646.2,3.77891]
[1730906132590,3.77843,2646.6,2646.0,3.77917]
[1730906132933,0.455575,2646.7,2646.2,3.77889]
[1730906133132,0.455575,2646.7,2645.7,3.77963]
[1730906133424,3.77879,2646.4,2645.8,0.07558492]
[1730906133669,3.77865,2646.5,2645.7,3.77963]
[1730906133818,0.7777,2646.8,2645.6,0.8253]
[1730906133819,3.77833,2646.7,2645.6,5.59717001]
[1730906134134,3.77868,2646.5,2645.8,3.77948]
[1730906134422,0.7777,2646.8,2645.0,5.302884]
[1730906134423,3.77924,2646.1,2645.5,7.55989]
[1730906134631,3.77924,2646.1,2645.6,3.77983]
[1730906134929,0.7747,2646.2,2645.6,3.77983]
[1730906135095,3.77917,2646.1,2645.4,3.78005]
[1730906135295,3.77917,2646.1,2645.5,3.77998]
[1730906135626,0.7747,2646.2,2645.1,3.7805]
[1730906135627,3.77984,2645.7,2645.1,3.7805]
[1730906135827,0.7686,2645.6,2644.9,3.78074]
[1730906136331,0.7686,2645.6,2644.8,0.87901126]
[1730906136487,0.7686,2645.6,2645.1,3.78043]
[1730906136883,3.78013,2645.5,2644.9,3.78077]
[1730906137090,4.612973,2645.5,2644.7,3.78108]
[1730906137313,3.78037,2645.3,2644.7,3.78103]
[1730906137497,4.612973,2645.5,2644.9,3.78086]
[1730906137821,3.78021,2645.4,2644.7,3.78104]
[1730906138194,3.78031,2645.3,2644.7,3.78104]
[1730906138399,0.9161783,2645.4,2644.7,3.78104]
[1730906138400,0.9161783,2645.4,2644.8,3.78099]
[1730906138623,3.78012,2645.5,2644.8,3.78099]
[1730906139098,3.78012,2645.5,2644.9,3.78084]
[1730906139535,0.7686,2645.6,2645.0,3.78058]
[1730906139823,0.7686,2645.6,2644.7,4.77187001]
[1730906139824,0.7686,2645.6,2645.3,7.56045]
[1730906140030,0.8179,2646.0,2645.3,0.76360612]
[1730906140213,4.59672,2646.4,2645.8,3.77946]
[1730906140423,4.59672,2646.4,2645.6,3.77982]
[1730906140424,0.8179,2646.4,2645.7,3.77962]
[1730906140595,3.77895,2646.3,2645.6,3.77975]
[1730906140793,3.77895,2646.3,2645.7,3.77967]
[1730906141010,3.77895,2646.3,2645.6,3.77975]
[1730906141218,3.77915,2646.1,2645.4,3.78008]
[1730906141500,0.377915,2646.1,2645.4,3.78014]
[1730906141736,3.77893,2646.3,2645.6,3.77978]
[1730906142039,0.8179,2646.4,2645.7,0.07559235]
[1730906142190,0.8179,2646.4,2646.1,3.77906]
[1730906142391,0.8179,2646.4,2645.2,0.460036]
[1730906142623,3.77908,2646.2,2645.6,7.55956]
[1730906142824,0.8179,2646.4,2645.2,0.07559663]
[1730906142991,0.8179,2646.4,2646.0,7.55847]
[1730906143192,0.8179,2646.4,2646.1,3.77914]
[1730906143438,0.8179,2646.4,2646.0,3.77918]
[1730906143624,0.8179,2646.4,2646.1,3.77912]
[1730906143809,0.8179,2646.4,2646.1,3.77909]
[1730906143997,0.8179,2646.4,2646.0,3.77918]
[1730906145087,0.8179,2646.4,2645.8,3.7795]
[1730906145293,3.77892,2646.3,2645.8,3.77949]
[1730906145537,8.37549,2646.4,2645.8,3.77949]
[1730906145688,5.434239,2646.4,2645.8,7.55898]
[1730906145894,3.77898,2646.3,2645.8,3.77949]
[1730906146133,3.77908,2646.2,2645.6,7.55955]
[1730906146630,7.55818,2646.2,2645.6,3.77977]
[1730906146844,3.77908,2646.2,2645.6,7.55955]
[1730906147043,3.77908,2646.2,2645.7,3.77968]
[1730906147343,1.655449,2646.4,2645.7,3.77968]
[1730906147344,7.55786,2646.3,2645.7,3.7797]
[1730906147495,3.77886,2646.3,2645.7,7.55932]
[1730906147694,3.77886,2646.3,2645.7,3.77962]
[1730906147932,3.7791,2646.2,2645.7,3.77962]
[1730906148144,0.8189,2646.3,2644.9,0.7602]
[1730906148300,4.59777,2646.3,2645.1,8.05788596]
[1730906148500,3.77917,2646.1,2645.5,3.77998]
[1730906148824,3.7793,2646.0,2645.4,3.78008]
[1730906148998,0.776,2645.8,2644.9,3.78078]
[1730906149195,0.776,2645.8,2644.9,3.78076]
[1730906149196,3.78008,2645.5,2644.9,3.78076]
[1730906149410,7.56018,2645.5,2644.9,3.78076]
[1730906149594,3.78024,2645.4,2644.9,3.78076]
[1730906150147,3.7806,2645.1,2644.5,3.78135]
[1730906150294,3.78081,2645.0,2644.3,3.83828765]
[1730906150499,3.7806,2645.1,2644.5,3.78139]
[1730906151201,3.7806,2645.1,2644.6,3.78125]
[1730906151396,0.776,2645.2,2644.6,3.78128]
[1730906151647,7.56191,2644.9,2644.3,4.16551876]
[1730906151954,3.78069,2645.1,2644.5,3.7814]
[1730906152251,3.78096,2644.9,2644.3,3.78164]
[1730906152412,3.78072,2645.0,2644.3,3.78164]
[1730906152604,3.78072,2645.0,2644.4,3.78154]
[1730906152799,3.78093,2644.9,2644.3,3.78164]
[1730906153212,3.78072,2645.0,2644.3,3.78164]
[1730906153543,4.236482,2645.0,2644.3,3.78162]
[1730906153695,0.7778,2644.9,2644.1,3.78191]
[1730906153895,3.78159,2644.4,2643.7,3.78249]
[1730906154100,3.7811,2644.8,2644.2,3.78176]
[1730906154295,3.7811,2644.8,2644.0,3.78205]
[1730906154542,3.78136,2644.6,2644.1,3.782]
[1730906154695,3.78136,2644.6,2644.1,3.78195]
[1730906154895,3.78107,2644.8,2643.8,3.78239]
[1730906154896,3.781,2644.8,2643.8,3.78239]
[1730906155140,3.78172,2644.3,2643.6,3.78263]
[1730906155501,4.55932,2644.5,2643.5,0.7924]
[1730906155502,0.7778,2644.5,2643.5,0.7924]
[1730906155819,0.7778,2644.5,2644.0,3.78206]
[1730906156044,3.0,2645.7,2643.5,0.7924]
[1730906156045,0.782,2644.9,2644.2,5.02680985]
[1730906156340,3.78107,2644.8,2644.1,3.78191]
[1730906156505,3.78107,2644.8,2644.3,3.78163]
[1730906157309,4.56294,2644.9,2644.3,3.78163]
[1730906157524,3.78114,2644.8,2644.1,3.7819]
[1730906157837,3.78138,2644.6,2644.1,3.7819]
[1730906158040,0.456289,2644.8,2644.1,3.7819]
[1730906158200,4.56296,2644.9,2644.4,3.78148]
[1730906158400,0.782,2644.9,2644.4,3.78148]
[1730906158603,0.782,2644.9,2644.4,0.378148]
[1730906158908,0.782,2644.9,2644.6,7.56247]
[1730906159103,0.782,2644.9,2644.2,0.7613]
[1730906159437,0.782,2644.9,2644.6,3.78126]
[1730906159601,0.782,2644.9,2644.6,3.7812]
[1730906159803,0.782,2644.9,2644.6,3.78118]
[1730906160038,0.782,2644.9,2644.4,3.78148]
[1730906160238,0.782,2644.9,2644.8,3.781]
[1730906160441,0.8117,2645.3,2644.9,3.78076]
[1730906160601,0.8117,2645.3,2644.9,3.78074]
[1730906160806,4.59165,2645.6,2645.0,3.78071]
[1730906161105,3.78015,2645.4,2644.9,3.78074]
[1730906161315,3.77994,2645.6,2644.9,4.536925]
[1730906161518,0.8117,2646.3,2645.6,3.77977]
[1730906161713,0.8117,2646.3,2645.8,3.77954]
[1730906161916,3.77944,2645.9,2645.1,0.7686]
[1730906162148,3.77944,2645.9,2644.6,3.78121]
[1730906162149,0.8037,2645.8,2645.4,3.78005]
[1730906162441,0.8037,2645.8,2644.9,3.78083]
[1730906162442,0.8037,2645.8,2645.5,3.77996]
[1730906163143,0.8037,2646.2,2645.7,3.77958]
[1730906163767,0.8037,2646.2,2646.1,3.77914]
[1730906164132,0.7898,2646.5,2646.2,3.7789]
[1730906164440,0.7898,2646.5,2646.1,7.55819]
[1730906164645,0.7898,2646.5,2646.2,3.77899]
[1730906164962,0.7787,2646.9,2646.3,3.77884]
[1730906165172,3.77822,2646.8,2646.2,3.77899]
[1730906165328,0.7787,2646.9,2646.5,3.77856]
[1730906165532,4.58179,2647.9,2646.6,0.07557366]
[1730906165732,4.58179,2647.9,2647.3,3.7773]
[1730906165733,4.58169,2647.9,2647.3,3.7773]
[1730906166038,0.8051,2647.9,2647.3,3.77734]
[1730906166239,0.8051,2647.9,2647.4,3.77728]
[1730906166453,3.77673,2647.8,2647.3,3.7774]
[1730906166654,1.263262,2647.9,2647.3,0.07554425]
[1730906166655,0.8051,2647.9,2647.3,0.07554425]
[1730906166968,0.8051,2647.9,2647.8,3.77672]
[1730906167274,0.8051,2647.9,2647.4,7.5544]
[1730906167456,0.8051,2647.9,2647.4,0.75544]
[1730906167626,0.8129,2648.2,2647.8,3.77672]
[1730906168166,0.8129,2648.2,2647.7,3.77684]
[1730906168384,0.8129,2648.2,2647.3,0.8256]
[1730906168726,0.8129,2648.2,2647.6,3.77691]
[1730906168930,3.77652,2648.0,2647.4,3.77718]
[1730906169158,4.613083,2648.0,2647.4,3.77718]
[1730906169367,4.613083,2648.0,2647.2,3.77749]
[1730906169673,4.613083,2648.0,2647.2,3.77747]
[1730906169674,0.7766,2647.7,2647.2,3.77747]
[1730906169973,3.81,2648.3,2647.6,3.77699]
[1730906170273,3.77648,2648.0,2647.4,3.77727]
[1730906170469,3.77648,2648.0,2647.3,3.77741]
[1730906170837,4.233358,2648.0,2647.0,0.8303]
[1730906171037,0.456848,2648.0,2647.0,0.8303]
[1730906171356,3.77768,2647.2,2646.2,0.7685]
[1730906171537,3.7784,2646.7,2646.3,0.87]
[1730906171730,0.8289,2646.6,2646.3,0.87]
[1730906172275,0.8289,2646.6,2646.4,3.77861]
[1730906172447,0.8289,2646.6,2646.0,3.77923]
[1730906172638,3.77915,2646.1,2645.5,3.77998]
[1730906172836,3.7793,2646.0,2645.4,3.78004]
[1730906173039,3.77847,2646.6,2645.2,3.78034]
[1730906173040,3.77975,2645.7,2645.2,3.78034]
[1730906173233,3.77975,2645.7,2645.0,3.78063]
[1730906173234,3.78002,2645.5,2645.0,3.78061]
[1730906173438,3.77975,2645.7,2645.0,3.78061]
[1730906173439,3.77986,2645.6,2645.0,3.78061]
[1730906173659,3.77975,2645.7,2645.1,3.78047]
[1730906173858,3.77975,2645.7,2644.8,7.56187]
[1730906174058,3.78002,2645.5,2644.8,3.7809]
[1730906174263,3.78002,2645.5,2644.8,3.85651078]
[1730906174466,3.78072,2645.0,2644.2,3.78181]
[1730906174747,4.57937,2645.1,2644.5,3.78137]
[1730906174945,0.7987,2645.1,2644.6,3.78123]
[1730906175175,0.7987,2645.1,2644.4,3.78146]
[1730906175562,4.57937,2645.1,2644.4,4.159606]
[1730906175767,4.57937,2645.1,2644.0,3.78204]
[1730906175768,3.78129,2644.6,2644.0,3.78204]
[1730906175939,3.78115,2644.7,2644.0,3.78204]
[1730906176140,3.78123,2644.7,2644.1,3.78199]
[1730906176370,3.7813,2644.6,2644.1,3.78199]
[1730906176681,3.78124,2644.7,2644.1,3.78199]
[1730906176837,4.57936,2645.1,2643.9,3.85786548]
[1730906177034,4.60411,2644.3,2643.7,3.78249]
[1730906177338,4.60346,2644.7,2644.0,3.78212]
[1730906177554,3.78137,2644.6,2644.0,3.78212]
[1730906177750,0.8223,2644.7,2643.8,0.07564134]
[1730906178003,0.8223,2644.7,2644.3,3.78163]
[1730906178157,4.59447,2645.1,2644.5,3.78143]
[1730906178361,0.8138,2645.1,2644.3,5.40497285]
[1730906178800,3.78025,2645.4,2644.8,3.781]
[1730906179393,3.78029,2645.3,2644.6,3.78125]
[1730906179710,4.59387,2645.5,2644.8,3.78089]
[1730906179851,4.59387,2645.5,2644.7,3.7811]
[1730906180058,3.78032,2645.3,2644.5,3.78131]
[1730906180605,0.8138,2645.5,2645.0,3.78069]
[1730906180952,0.8138,2645.5,2644.6,3.7812]
[1730906181190,3.78045,2645.2,2644.6,3.78119]
[1730906181398,3.78045,2645.2,2644.6,3.85680726]
[1730906181560,3.78045,2645.2,2644.6,3.78119]
[1730906181753,3.78045,2645.2,2644.6,3.85680726]
[1730906181989,3.78045,2645.2,2644.7,3.78109]
[1730906182304,3.78073,2645.0,2644.5,3.78141]
[1730906182505,7.561,2645.2,2644.5,3.78141]
[1730906182662,3.78018,2645.4,2644.7,3.78112]
[1730906182859,0.8138,2645.5,2644.9,3.78074]
[1730906183089,3.78024,2645.4,2644.9,0.38563575]
[1730906183399,3.78015,2645.4,2644.8,3.781]
[1730906183556,3.78055,2645.2,2644.5,3.78137]
[1730906183757,0.378055,2645.2,2644.7,3.78113]
[1730906184080,0.8138,2645.5,2644.1,3.782]
[1730906184081,0.8138,2645.5,2644.8,0.07561864]
[1730906184376,3.78042,2645.3,2644.6,3.78128]
[1730906184583,0.8138,2645.5,2644.6,3.78128]
[1730906184785,3.78045,2645.2,2644.6,3.78128]
[1730906185105,3.78065,2645.1,2644.2,3.85734692]
[1730906185304,0.756068,2645.2,2644.0,0.7864]
[1730906185305,3.78095,2644.9,2644.0,4.56845]
[1730906185815,0.7679,2644.7,2644.0,3.78205]
[1730906186055,3.78173,2644.3,2643.8,0.07563605]
[1730906186313,3.78173,2644.3,2643.5,3.78278]
[1730906186314,3.78194,2644.2,2643.5,3.78278]
[1730906186479,3.78173,2644.3,2643.5,3.78278]
[1730906186682,3.78173,2644.3,2643.7,3.78257]
[1730906187007,3.78173,2644.3,2643.5,7.943838]
[1730906187212,3.78147,2644.5,2643.7,3.78246]
[1730906187501,3.78147,2644.5,2643.5,0.378278]
[1730906187502,3.78144,2644.5,2643.8,3.78231]
[1730906187869,3.78185,2644.3,2643.6,3.78263]
[1730906188069,3.78216,2644.0,2643.4,3.78289]
[1730906188274,3.78248,2643.8,2643.2,5.001944]
[1730906188605,0.7788,2644.0,2643.3,0.5001944]
[1730906188863,3.78252,2643.8,2643.2,0.455634]
[1730906189199,3.78272,2643.6,2643.2,0.455634]
[1730906189616,0.7788,2644.0,2643.3,3.85867768]
[1730906189824,0.7788,2644.0,2643.2,4.238884]
[1730906189825,3.78243,2643.8,2643.2,3.78325]
[1730906190129,3.78243,2643.8,2643.0,3.78345]
[1730906190130,3.78258,2643.7,2643.0,3.78345]
[1730906190312,3.78273,2643.6,2643.0,3.8591598]
[1730906190516,3.78232,2643.9,2642.8,3.78376]
[1730906190723,4.59971,2643.4,2642.8,4.617874]
[1730906191031,0.456112,2643.8,2643.1,3.78341]
[1730906191032,3.78276,2643.6,2643.1,3.78341]
[1730906191193,3.78308,2643.4,2642.9,3.78367]
[1730906191391,3.78308,2643.4,2642.9,3.85932925]
[1730906191923,3.78311,2643.4,2642.9,0.07565925]
[1730906192129,3.78327,2643.3,2642.8,0.834114]
[1730906192302,3.78334,2643.2,2642.7,3.78399]
[1730906193053,3.78344,2643.1,2642.6,4.55731]
[1730906193371,0.7896,2643.8,2642.9,3.78371]
[1730906193649,4.57584,2644.2,2643.5,3.78275]
[1730906193798,3.782,2644.1,2643.5,3.78275]
[1730906194001,3.782,2644.1,2642.8,0.56]
[1730906194002,3.78243,2643.8,2643.2,3.7832]
[1730906194241,0.7939,2643.9,2643.4,3.78289]
[1730906194943,3.78243,2643.8,2643.2,3.7832]
[1730906195143,7.56496,2643.8,2643.2,3.7832]
[1730906195342,0.7939,2643.9,2642.8,0.7517]
[1730906195550,3.61,2644.4,2642.8,0.7517]
[1730906195551,4.60222,2644.2,2643.6,3.78269]
[1730906195844,4.60222,2644.2,2643.6,3.78264]
[1730906196012,0.8203,2644.2,2643.6,0.378264]
[1730906196213,4.56976,2644.6,2644.0,3.78207]
[1730906196427,0.7884,2644.6,2644.0,3.78207]
[1730906196629,3.78159,2644.4,2643.8,3.78233]
[1730906196950,0.7884,2644.6,2643.5,0.7502]
[1730906197242,0.7884,2644.6,2644.1,3.78191]
[1730906197462,0.7884,2644.6,2644.3,3.78169]
[1730906198313,0.7967,2645.0,2644.5,3.78143]
[1730906198515,0.7967,2645.0,2644.7,3.78113]
[1730906198817,0.7737,2645.4,2644.9,3.78078]
[1730906199025,4.55393,2645.4,2644.9,3.78078]
[1730906199331,3.78012,2645.5,2644.7,4.159173]
[1730906199530,7.55961,2645.7,2644.9,3.78074]
[1730906199843,3.77993,2645.6,2645.0,3.78061]
[1730906200054,4.613131,2645.7,2645.1,3.78056]
[1730906200216,4.55321,2645.9,2645.3,3.78028]
[1730906200217,3.77957,2645.8,2645.3,3.78028]
[1730906200421,3.77973,2645.7,2645.1,3.7805]
[1730906200619,3.77973,2645.7,2645.2,3.78042]
[1730906201352,3.77973,2645.7,2645.1,3.7805]
[1730906201353,0.833278,2645.8,2645.3,3.78028]
[1730906201517,4.55321,2645.9,2645.3,3.78028]
[1730906201712,4.55321,2645.9,2645.3,3.7802]